fUST/lending_fUST_20251018
["ID","MTS","AMOUNT","RATE_DAILY","PERIOD"]
[391768244,1760789444220,-217.5,0.000263,2]
[391768245,1760789444230,-500.0,0.0002655,2]
[391768247,1760789444239,-1000.0,0.00026662,2]
[391768249,1760789444248,-743.137452,0.00026676,2]
[391768251,1760789444257,-160.0,0.000268,2]
[391768253,1760789444267,-240.0,0.000269,2]
[391768255,1760789444276,-1069.77701888,0.0002721,2]
[391768258,1760789444287,-430.22298112,0.0002721,2]
[391768260,1760789444296,-294.77639936,0.00027348,2]
[391768261,1760789444305,-420.0,0.00027383,2]
[391768264,1760789444315,-262.5,0.000275,2]
[391768265,1760789444324,-400.0,0.00027506,2]
[391768267,1760789444334,-273.32397548,0.00027621,2]
[391768269,1760789444343,-572.17664404,0.00027758,5]
[391768273,1760789458501,153.0,0.000242,2]
[391768274,1760789501050,162.0,0.000242,2]
[391768275,1760789747623,500.0,0.00029,120]
[391768276,1760789978491,5000.0,0.000242,2]
[391768277,1760789998861,1652.59848756,0.000242,2]
[391768278,1760789998882,3347.40151244,0.000242,2]
[391768279,1760790005444,5000.0,0.000242,2]
[391768280,1760790015613,1652.60848756,0.000242,2]
[391768281,1760790015634,3352.30151244,0.000242,2]
[391768283,1760790086644,520.645665,0.00023983,12]
[391768284,1760790155175,2376.29,0.00029041,120]
[391768288,1760790548608,300.0,0.00029,120]
[391768314,1760790631730,-277.0,0.000245,2]
[391768316,1760790631740,-150.0,0.000245,2]
[391768318,1760790631749,-300.0,0.00024773,2]
[391768320,1760790631759,-250.00000007,0.00024773,2]
[391768323,1760790631782,-276.3222811,0.00024773,2]
[391768370,1760790637623,-673.67771883,0.00024773,2]
[391768372,1760790637633,-3573.32871885,0.00024774,2]
[391768374,1760790637644,-963.85330514,0.00024774,2]
[391768376,1760790637655,-1003.90200101,0.00024774,2]
[391768385,1760790637729,-4337.83738625,0.00024774,2]
[391768421,1760790639890,-174.88175289,0.00024774,2]
[391768422,1760790639899,-172.5,0.000251,2]
[391768423,1760790639908,-300.0,0.00025268,20]
[391768424,1760790639918,-300.0,0.00025268,20]
[391768425,1760790639927,-300.0,0.00025268,20]
[391768426,1760790639936,-300.0,0.00025268,20]
[391768427,1760790639946,-300.0,0.00025268,20]
[391768428,1760790639955,-300.0,0.00025268,20]
[391768429,1760790639972,-300.0,0.00025268,20]
[391768430,1760790639984,-300.0,0.00025268,20]
[391768431,1760790639994,-300.0,0.00025268,20]
[391768432,1760790640003,-300.0,0.00025268,20]
[391768433,1760790640013,-300.0,0.00025268,20]
[391768434,1760790640022,-300.0,0.00025268,20]
[391768435,1760790640032,-300.0,0.00025268,20]
[391768436,1760790640041,-300.0,0.00025268,20]
[391768437,1760790640051,-300.0,0.00025268,20]
[391768438,1760790640060,-195.0,0.000257,2]
[391768439,1760790640069,-500.0,0.00025833,2]
[391768440,1760790640079,-197.0944034,0.00025954,2]
[391768441,1760790640088,-982.0,0.00026125,2]
[391768442,1760790640098,-2162.0,0.00026125,2]
[391768443,1760790640109,-631.0,0.00026125,2]
[391768444,1760790640119,-180.0,0.00026125,2]
[391768445,1760790640131,-180.0,0.00026125,2]
[391768446,1760790640141,-221.7681103,0.00026125,2]
[391768447,1760790640150,-411.0,0.00026125,2]
[391768448,1760790640160,-423.986,0.00026125,2]
[391768449,1760790640171,-217.5,0.000263,2]
[391768450,1760790640180,-1149.6802411,0.00026381,2]
[391768451,1760790640189,-500.0,0.00026574,2]
[391768452,1760790640199,-500.0,0.00026574,2]
[391768453,1760790640209,-212.48463544,0.00026574,2]
[391768454,1760790640221,-355.78362851,0.00026574,2]
[391768455,1760790640231,-572.70901206,0.00026574,2]
[391768456,1760790640240,-500.0,0.00026574,2]
[391768457,1760790640250,-500.0,0.00026574,2]
[391768458,1760790640259,-382.43145841,0.00026574,2]
[391768459,1760790640269,-500.0,0.00026574,2]
[391768460,1760790640278,-602.90161129,0.00026574,2]
[391768461,1760790640288,-600.0,0.00026646,30]
[391768462,1760790640297,-380.0,0.0002666,2]
[391768463,1760790640480,-179.64071856,0.0002669,2]
[391768464,1760790640490,-420.0,0.00026844,2]
[391768465,1760790640500,-240.0,0.000269,2]
[391768466,1760790640509,-400.0,0.00026965,2]
[391768467,1760790640519,-281.0,0.000271,2]
[391768468,1760790640529,-262.5,0.000275,2]
[391768469,1760790640539,-10184.32637478,0.000275,2]
[391768491,1760790642843,-2823.03570331,0.000275,2]
[391768492,1760790642854,-535.9915868,0.000275,2]
[391768495,1760790759209,417.15472785,0.000242,2]
[391768497,1760790991211,151.0,0.00024,120]
[391768498,1760790992580,151.0,0.000258,120]
[391768499,1760790993983,151.0,0.000275,120]
[391768500,1760791349994,154.0,0.00024,120]
[391768501,1760791351389,154.0,0.000259,120]
[391768502,1760791352773,154.0,0.000278,120]
[391768503,1760791388104,315.55,0.00029041,120]
[391768504,1760791511784,525.47524385,0.0002,10]
[391768505,1760791520456,160.0,0.00029,120]
[391768506,1760791552438,645.5595984,0.00033968,60]
[391768510,1760791603499,631.666834,0.00013699,2]
[391768511,1760791603722,631.666834,0.00020187,2]
[391768512,1760791693364,180.0,0.00029,120]
[391768513,1760791695919,207.84540686,0.00029,120]
[391768514,1760791703709,417.15472785,0.000242,2]
[391768515,1760791800634,150.0,0.00020433,2]
[391768516,1760791801154,150.0,0.00022291,2]
[391768517,1760791801638,150.0,0.00024148,2]
[391768539,1760791838063,-150.0,0.00025205,2]
[391768540,1760791838072,-172.5,0.00025805,2]
[391768541,1760791838082,-150.0,0.00026006,2]
[391768542,1760791838093,-163.382345,0.00026316,2]
[391768543,1760791838102,-195.0,0.00026405,2]
[391768544,1760791838113,-300.0,0.00026418,2]
[391768545,1760791838122,-982.0,0.00026419,2]
[391768546,1760791838132,-411.0,0.00026419,2]
[391768547,1760791838142,-423.986,0.00026419,2]
[391768548,1760791838151,-2162.0,0.00026419,2]
[391768549,1760791838160,-631.0,0.00026419,2]
[391768550,1760791838170,-8030.0,0.00026419,2]
[391768551,1760791838179,-185.647526,0.00026458,2]
[391768552,1760791838188,-631.666834,0.00026676,2]
[391768553,1760791838198,-179.64071856,0.0002669,2]
[391768554,1760791838207,-153.60349538,0.00026693,2]
[391768555,1760791838216,-233.65573459,0.00026693,2]
[391768556,1760791838226,-199.0,0.00026693,7]
[391768557,1760791838235,-8412.1086213,0.00026694,2]
[391768558,1760791838244,-180.6698698,0.00026694,2]
[391768559,1760791838253,-154.6961887,0.00026694,2]
[391768560,1760791838262,-300.01637497,0.00026867,2]
[391768561,1760791838272,-199.0,0.00026967,8]
[391768562,1760791838281,-217.5,0.00027005,2]
[391768563,1760791838291,-500.0,0.00027194,7]
[391768564,1760791838301,-199.0,0.00027241,9]
[391768565,1760791838310,-500.0,0.00027382,7]
[391768566,1760791838319,-160.0,0.00027382,2]
[391768567,1760791838328,-402.78104431,0.00027382,2]
[391768568,1760791838338,-160.0,0.00027382,2]
[391768569,1760791838348,-160.0,0.00027382,2]
[391768570,1760791838358,-1120.77724024,0.000274,2]
[391768571,1760791838367,-208.80050278,0.000274,2]
[391768572,1760791838377,-189.21008692,0.000274,2]
[391768573,1760791838386,-176.24606283,0.000274,2]
[391768574,1760791838395,-474.28829542,0.000274,2]
[391768575,1760791838404,-168.48305814,0.000274,2]
[391768576,1760791838414,-215.46823585,0.000274,2]
[391768577,1760791838423,-160.144196,0.000274,2]
[391768578,1760791838433,-176.65557891,0.000274,2]
[391768579,1760791838442,-193.99532146,0.000274,2]
[391768580,1760791838452,-171.06300999,0.000274,2]
[391768581,1760791838461,-500.0,0.00027461,7]
[391768582,1760791838471,-2600.37927004,0.000275,2]
[391768583,1760791838480,-199.0,0.00027515,10]
[391768584,1760791838490,-240.0,0.00027605,2]
[391768585,1760791838499,-1120.77724024,0.000277,2]
[391768586,1760791838512,-474.28829542,0.000277,2]
[391768587,1760791838522,-176.24606283,0.000277,2]
[391768588,1760791838531,-168.48305814,0.000277,2]
[391768589,1760791838540,-215.46823585,0.000277,2]
[391768590,1760791838550,-176.65557891,0.000277,2]
[391768591,1760791838559,-171.06300999,0.000277,2]
[391768592,1760791838568,-199.0,0.00027789,11]
[391768593,1760791838578,-179.42,0.00027854,17]
[391768594,1760791838587,-150.0,0.00027864,2]
[391768595,1760791838597,-1120.77724024,0.000279,2]
[391768596,1760791838607,-474.28829542,0.000279,2]
[391768597,1760791838616,-176.24606283,0.000279,2]
[391768598,1760791838625,-168.48305814,0.000279,2]
[391768599,1760791838635,-215.46823585,0.000279,2]
[391768600,1760791838644,-9000.0,0.00028,2]
[391768601,1760791838654,-10334.88099822,0.00028,5]
[391768602,1760791838663,-11108.25771578,0.00028,4]
[391768603,1760791838673,-25000.0,0.00028,3]
[391768604,1760791838682,-1168.55696535,0.00028,2]
[391768605,1760791838692,-219.01468614,0.00028,2]
[391768606,1760791838701,-199.0,0.00028063,12]
[391768607,1760791838711,-1120.77724024,0.000282,2]
[391768608,1760791838720,-474.28829542,0.000282,2]
[391768609,1760791838730,-176.24606283,0.000282,2]
[391768610,1760791838739,-168.48305814,0.000282,2]
[391768611,1760791838748,-215.46823585,0.000282,2]
[391768612,1760791838758,-2825.8,0.000282,2]
[391768613,1760791838768,-262.5,0.00028205,2]
[391768614,1760791838777,-44980.3516388,0.00028243,2]
[391768615,1760791838787,-692.61027559,0.00028243,2]
[391768616,1760791838796,-5057.73,0.00028252,2]
[391768617,1760791838805,-300.0,0.00028253,30]
[391768618,1760791838814,-300.0,0.00028253,30]
[391768619,1760791838823,-300.0,0.00028253,30]
[391768620,1760791838832,-300.0,0.00028253,30]
[391768621,1760791838842,-300.0,0.00028253,30]
[391768622,1760791838852,-300.0,0.00028253,30]
[391768623,1760791838868,-300.0,0.00028253,30]
[391768624,1760791838878,-300.0,0.00028253,30]
[391768625,1760791838887,-300.0,0.00028253,30]
[391768626,1760791838896,-300.0,0.00028253,30]
[391768627,1760791838906,-300.0,0.00028253,30]
[391768628,1760791838915,-300.0,0.00028253,30]
[391768629,1760791838925,-300.0,0.00028253,30]
[391768630,1760791838935,-300.0,0.00028253,30]
[391768631,1760791838944,-300.0,0.00028253,30]
[391768632,1760791838954,-160.01765415,0.00028273,5]
[391768633,1760791838963,-500.0,0.00028273,5]
[391768634,1760791838973,-500.0,0.00028273,5]
[391768635,1760791838982,-500.0,0.00028273,5]
[391768636,1760791838992,-500.0,0.00028273,5]
[391768637,1760791839001,-481.22134437,0.00028279,2]
[391768638,1760791839011,-500.0,0.00028292,7]
[391768639,1760791839143,-199.0,0.00028337,13]
[391768640,1760791839154,-796.70240499,0.0002839,2]
[391768641,1760791839163,-160.0,0.00028465,2]
[391768642,1760791839173,-158.4,0.00028473,2]
[391768643,1760791839183,-500.0,0.00028473,5]
[391768644,1760791839193,-500.0,0.00028473,5]
[391768645,1760791839203,-158.4,0.00028473,5]
[391768646,1760791839212,-258.41687579,0.00028473,5]
[391768647,1760791839221,-150.0,0.00028473,5]
[391768648,1760791839231,-281.48,0.0002848,3]
[391768649,1760791839240,-341.8,0.0002848,3]
[391768650,1760791839249,-170.9,0.0002848,3]
[391768651,1760791839258,-512.71,0.0002848,3]
[391768652,1760791839268,-44980.3516388,0.0002848,2]
[391768653,1760791839277,-692.61027559,0.0002848,2]
[391768654,1760791839286,-179921.406555,0.0002849,2]
[391768655,1760791839295,-2770.44110236,0.0002849,2]
[391768656,1760791839304,-150.0,0.00028499,2]
[391768657,1760791839314,-145241.46238976,0.000285,7]
[391768658,1760791839323,-1120.77724024,0.000285,2]
[391768659,1760791839332,-474.28829542,0.000285,2]
[391768660,1760791839342,-215.46823585,0.000285,2]
[391768661,1760791839351,-151.0,0.000285,30]
[391768662,1760791839362,-151.0,0.000285,30]
[391768663,1760791839371,-151.0,0.000285,7]
[391768664,1760791839381,-151.0,0.000285,30]
[391768665,1760791839391,-151.0,0.000285,30]
[391768666,1760791839401,-151.0,0.000285,30]
[391768667,1760791839410,-151.0,0.000285,30]
[391768668,1760791839419,-151.0,0.000285,30]
[391768669,1760791839429,-151.0,0.000285,30]
[391768670,1760791839438,-151.0,0.000285,30]
[391768671,1760791839447,-151.0,0.000285,30]
[391768672,1760791839456,-192.4304022,0.000285,30]
[391768673,1760791839466,-151.0,0.000285,30]
[391768674,1760791839475,-151.0,0.000285,30]
[391768675,1760791839484,-151.0,0.000285,30]
[391768676,1760791839493,-268.973057,0.000285,30]
[391768677,1760791839503,-21457.85,0.000285,7]
[391768678,1760791839518,-151.0,0.000285,30]
[391768679,1760791839528,-151.0,0.000285,30]
[391768681,1760791839538,-150.0,0.00028546,2]
[391768682,1760791839547,-150.0,0.00028546,2]
[391768683,1760791839557,-600.0,0.00028559,30]
[391768684,1760791839566,-420.0,0.00028578,2]
[391768685,1760791839575,-199.0,0.00028611,14]
[391768686,1760791839588,-263.0,0.00028621,2]
[391768688,1760791839598,-500.0,0.00028686,7]
[391768690,1760791839607,-866.19841986,0.00028701,2]
[391768691,1760791839616,-988.62886887,0.0002876,2]
[391768692,1760791839625,-4000.0,0.0002876,5]
[391768693,1760791839635,-2317.52641926,0.0002876,2]
[391768694,1760791839644,-250.22816709,0.0002876,2]
[391768695,1760791839653,-169.77033443,0.000288,7]
[391768697,1760791839663,-285.0,0.00028805,2]
[391768698,1760791839672,-150.0,0.00028818,2]
[391768699,1760791839682,-150.0,0.00028818,2]
[391768700,1760791839691,-1000.0,0.00028821,5]
[391768701,1760791839701,-324.94049382,0.00028821,5]
[391768702,1760791839712,-1000.0,0.00028821,5]
[391768703,1760791839721,-199.0,0.00028885,15]
[391768704,1760791839732,-881.66337224,0.00029,2]
[391768705,1760791839742,-502.25841114,0.00029,7]
[391768706,1760791839751,-260.0,0.00029013,2]
[391768708,1760791839763,-250.0,0.00029021,5]
[391768710,1760791839773,-1123.83451013,0.00029042,120]
[391768712,1760791839782,-1539.90830198,0.00029123,2]
[391768714,1760791839792,-199.0,0.00029159,16]
[391768715,1760791839801,-500.0,0.00029285,7]
[391768716,1760791839811,-500.0,0.00029286,7]
[391768717,1760791839820,-1500.0,0.00029368,5]
[391768718,1760791839829,-1500.0,0.00029368,5]
[391768719,1760791839839,-307.5,0.00029405,2]
[391768720,1760791839849,-982.0,0.00029419,2]
[391768721,1760791839859,-411.0,0.00029419,2]
[391768722,1760791839868,-411.0,0.00029419,2]
[391768723,1760791839878,-2162.0,0.00029419,2]
[391768724,1760791839887,-631.0,0.00029419,2]
[391768725,1760791839897,-199.0,0.00029433,17]
[391768726,1760791839911,-187.01117833,0.000295,120]
[391768727,1760791839920,-1631.445633,0.000295,2]
[391768729,1760791839930,-44980.3516388,0.0002954,2]
[391768731,1760791839939,-692.61027559,0.0002954,2]
[391768733,1760791839948,-2406.10672184,0.00029544,2]
[391768735,1760791839958,-151.0,0.0002955,30]
[391768737,1760791839967,-151.0,0.0002955,30]
[391768739,1760791839976,-151.0,0.0002955,7]
[391768741,1760791839985,-151.0,0.0002955,30]
[391768743,1760791839994,-151.0,0.0002955,30]
[391768745,1760791840003,-151.0,0.0002955,30]
[391768747,1760791840013,-151.0,0.0002955,30]
[391768749,1760791840022,-151.0,0.0002955,30]
[391768751,1760791840031,-151.0,0.0002955,30]
[391768753,1760791840040,-151.0,0.0002955,30]
[391768755,1760791840049,-151.0,0.0002955,30]
[391768757,1760791840059,-151.0,0.0002955,30]
[391768759,1760791840068,-151.0,0.0002955,30]
[391768761,1760791840077,-692.61027559,0.0002955,2]
[391768763,1760791840086,-71108.05283662,0.0002956,2]
[391768765,1760791840095,-151.0,0.0002956,30]
[391768767,1760791840104,-151.0,0.0002956,30]
[391768769,1760791840114,-151.0,0.0002956,30]
[391768771,1760791840123,-301.648661,0.0002956,30]
[391768773,1760791840134,-151.0,0.0002956,30]
[391768775,1760791840144,-151.0,0.0002956,30]
[391768777,1760791840153,-151.0,0.0002956,30]
[391768779,1760791840162,-151.0,0.0002956,30]
[391768781,1760791840171,-151.0,0.0002956,30]
[391768783,1760791840181,-151.0,0.0002956,30]
[391768785,1760791840190,-151.0,0.0002956,30]
[391768787,1760791840199,-612.272005,0.0002956,30]
[391768789,1760791840208,-151.0,0.0002956,30]
[391768791,1760791840217,-151.0,0.0002956,30]
[391768792,1760791840226,-612.272005,0.0002956,30]
[391768794,1760791840236,-151.0,0.0002956,30]
[391768796,1760791840245,-151.0,0.0002956,30]
[391768798,1760791840254,-612.272005,0.0002956,30]
[391768800,1760791840263,-151.0,0.0002956,30]
[391768802,1760791840273,-612.272005,0.0002956,30]
[391768804,1760791840282,-151.0,0.0002956,30]
[391768806,1760791840292,-151.0,0.0002956,30]
[391768808,1760791840301,-151.0,0.0002956,30]
[391768810,1760791840310,-180.734418,0.0002956,30]
[391768811,1760791840319,-151.0,0.0002956,30]
[391768812,1760791840328,-360.0,0.00029561,2]
[391768813,1760791840338,-350.0,0.00029568,5]
[391768814,1760791840347,-168.0,0.00029595,2]
[391768815,1760791840356,-5057.73,0.00029622,4]
[391768816,1760791840366,-154.0,0.000297,120]
[391768817,1760791840375,-199.0,0.00029707,18]
[391768818,1760791840384,-150.0,0.00029721,2]
[391768819,1760791840393,-692.61027559,0.00029829,2]
[391768820,1760791840402,-823.77908852,0.00029838,2]
[391768821,1760791840416,-562.96,0.0002985,3]
[391768822,1760791840425,-683.6,0.0002985,3]
[391768823,1760791840434,-341.8,0.0002985,3]
[391768824,1760791840443,-2000.0,0.00029916,5]
[391768825,1760791840453,-2000.0,0.00029916,5]
[391768826,1760791840462,-3464.79367945,0.00029966,2]
[391768827,1760791840471,-199.0,0.00029981,19]
[391768828,1760791840480,-1385.22055118,0.0002999,2]
[391768829,1760791840490,-1000.0,0.0003,2]
[391768830,1760791840499,-7290.11507159,0.0003,2]
[391768831,1760791840513,-27023.2777824,0.0003,15]
[391768833,1760791840523,-301.64994618,0.0003,120]
[391768835,1760791840533,-183.1820543,0.0003,120]
[391768836,1760791840543,-3419.15655011,0.0003,2]
[391768837,1760791840554,-785.81490251,0.0003,60]
[391768838,1760791840564,-200.23333222,0.0003,2]
[391768839,1760791840575,-5930.57785028,0.0003,2]
[391768841,1760791840584,-151.0,0.0003,30]
[391768842,1760791840594,-151.0,0.0003,30]
[391768844,1760791840603,-262.928332,0.0003,7]
[391768846,1760791840613,-151.0,0.0003,30]
[391768847,1760791840621,-151.0,0.0003,30]
[391768848,1760791840631,-151.0,0.0003,30]
[391768849,1760791840641,-151.0,0.0003,30]
[391768850,1760791840652,-151.0,0.0003,30]
[391768851,1760791840661,-151.0,0.0003,30]
[391768852,1760791840672,-151.0,0.0003,30]
[391768853,1760791840683,-151.0,0.0003,30]
[391768854,1760791840693,-2850.39,0.0003,2]
[391768855,1760791840703,-2742.58,0.0003,7]
[391768856,1760791840714,-21457.85,0.0003,7]
[391768857,1760791840725,-1500.0,0.0003,2]
[391768858,1760791840736,-1000.0,0.0003,4]
[391768859,1760791840746,-330.0,0.00030005,2]
[391768860,1760791840756,-168.0,0.00030077,2]
[391768861,1760791840766,-151.0,0.0003009,30]
[391768862,1760791840775,-151.0,0.0003009,30]
[391768863,1760791840784,-151.0,0.0003009,30]
[391768864,1760791840794,-151.0,0.0003009,30]
[391768865,1760791840805,-2077.83082677,0.0003009,2]
[391768866,1760791840815,-612.272005,0.0003009,30]
[391768867,1760791840826,-151.0,0.0003009,30]
[391768868,1760791840837,-151.0,0.0003009,30]
[391768869,1760791840848,-612.272005,0.0003009,30]
[391768870,1760791840857,-151.0,0.0003009,30]
[391768871,1760791840867,-151.0,0.0003009,30]
[391768872,1760791840876,-612.272005,0.0003009,30]
[391768873,1760791840885,-151.0,0.0003009,30]
[391768874,1760791840894,-612.272005,0.0003009,30]
[391768875,1760791840903,-151.0,0.0003009,30]
[391768876,1760791840912,-151.0,0.0003009,30]
[391768877,1760791840921,-112828.20400821,0.000301,3]
[391768878,1760791840930,-151.0,0.000301,7]
[391768879,1760791840939,-151.0,0.000301,7]
[391768880,1760791840949,-151.0,0.000301,7]
[391768881,1760791840957,-151.0,0.000301,7]
[391768882,1760791840966,-194.857416,0.000301,7]
[391768883,1760791840976,-151.0,0.000301,30]
[391768884,1760791840985,-151.0,0.000301,30]
[391768885,1760791840995,-151.0,0.000301,30]
[391768886,1760791841004,-151.0,0.000301,30]
[391768887,1760791841013,-151.0,0.000301,30]
[391768888,1760791841024,-151.0,0.000301,30]
[391768889,1760791841033,-151.0,0.000301,30]
[391768890,1760791841043,-151.0,0.000301,30]
[391768891,1760791841052,-151.0,0.000301,30]
[391768892,1760791841062,-262.832609,0.000301,30]
[391768893,1760791841071,-151.0,0.000301,30]
[391768894,1760791841081,-612.272005,0.000301,30]
[391768895,1760791841090,-151.0,0.000301,30]
[391768896,1760791841100,-151.0,0.000301,30]
[391768897,1760791841110,-612.272005,0.000301,30]
[391768898,1760791841119,-219.623818,0.000301,30]
[391768899,1760791841128,-151.0,0.000301,30]
[391768900,1760791841138,-612.272005,0.000301,30]
[391768901,1760791841147,-151.0,0.000301,30]
[391768902,1760791841157,-612.272005,0.000301,30]
[391768903,1760791841166,-151.0,0.000301,30]
[391768904,1760791841176,-151.0,0.000301,30]
[391768905,1760791841186,-460.0,0.00030109,2]
[391768906,1760791841195,-450.0,0.00030116,5]
[391768907,1760791841206,-353.15870472,0.0003012,7]
[391768908,1760791841216,-285.48736586,0.0003013,2]
[391768909,1760791841225,-2018.42299926,0.00030136,2]
[391768910,1760791841236,-1075.365377,0.00030137,120]
[391768911,1760791841247,-271.88742116,0.0003015,120]
[391768912,1760791841257,-500.0,0.00030173,5]
[391768913,1760791841267,-670.4140214,0.0003022,2]
[391768914,1760791841278,-280.73819981,0.00030255,20]
[391768915,1760791841287,-500.0,0.0003028,7]
[391768916,1760791841298,-1000.0,0.000303,14]
[391768917,1760791841308,-854.2589148,0.00030386,2]
[391768918,1760791841319,-4715.96917481,0.00030388,2]
[391768919,1760791841329,-500.0,0.00030404,7]
[391768920,1760791841338,-2500.0,0.00030464,5]
[391768921,1760791841349,-2500.0,0.00030464,5]
[391768922,1760791841359,-200.0,0.000305,120]
[391768923,1760791841367,-378.83518,0.000305,120]
[391768924,1760791841376,-200.0,0.000305,120]
[391768925,1760791841385,-352.5,0.00030605,2]
[391768926,1760791841394,-307.01827292,0.00030652,2]
[391768927,1760791841403,-692.61027559,0.00030654,2]
[391768928,1760791841412,-560.0,0.00030657,2]
[391768929,1760791841421,-550.0,0.00030664,5]
[391768930,1760791841430,-186.27485546,0.00030721,5]
[391768931,1760791841439,-6159.63320791,0.0003081,2]
[391768932,1760791841450,-587.0,0.00030914,2]
[391768933,1760791841460,-885.86649465,0.00030934,2]
[391768934,1760791841469,-5057.73,0.00030992,6]
[391768935,1760791841479,-1500.0,0.00031,2]
[391768936,1760791841488,-1500.0,0.00031,2]
[391768937,1760791841497,-1500.0,0.00031,2]
[391768938,1760791841509,-1500.0,0.00031,2]
[391768939,1760791841518,-1500.0,0.00031,2]
[391768940,1760791841527,-1500.0,0.00031,2]
[391768941,1760791841536,-1500.0,0.00031,2]
[391768942,1760791841547,-1500.0,0.00031,2]
[391768943,1760791841556,-1500.0,0.00031,2]
[391768944,1760791841565,-1500.0,0.00031,2]
[391768945,1760791841574,-1500.0,0.00031,2]
[391768946,1760791841584,-414.79,0.00031,2]
[391768947,1760791841593,-1224.63,0.00031,2]
[391768948,1760791841602,-3000.0,0.00031012,5]
[391768949,1760791841612,-3000.0,0.00031012,5]
[391768950,1760791841622,-500.0,0.00031089,7]
[391768951,1760791841632,-1224.63,0.00031174,2]
[391768952,1760791841642,-796.70240499,0.000312,2]
[391768953,1760791841652,-660.0,0.00031204,2]
[391768954,1760791841662,-375.0,0.00031205,2]
[391768955,1760791841671,-304.84595855,0.00031212,5]
[391768956,1760791841681,-159.97,0.00031228,15]
[391768957,1760791841690,-156.88,0.00031228,15]
[391768958,1760791841699,-779.4,0.00031228,15]
[391768959,1760791841708,-7795.78577876,0.00031232,2]
[391768960,1760791841718,-411.09292072,0.00031239,7]
[391768961,1760791841730,-159.98423559,0.00031328,15]
[391768962,1760791841741,-156.88327755,0.00031328,15]
[391768963,1760791841750,-779.4,0.00031328,15]
[391768964,1760791841759,-1224.63,0.00031348,2]
[391768965,1760791841768,-180.6698698,0.0003138,2]
[391768966,1760791841777,-154.36360763,0.00031397,30]
[391768967,1760791841787,-154.36360763,0.00031397,30]
[391768968,1760791841796,-720.0,0.00031415,30]
[391768969,1760791841805,-779.4,0.00031428,15]
[391768970,1760791841814,-918.64355495,0.00031482,2]
[391768971,1760791841824,-2850.39,0.000315,2]
[391768972,1760791841833,-437.14010895,0.00031507,2]
[391768973,1760791841842,-786.85219611,0.00031507,2]
[391768974,1760791841853,-1398.84834864,0.00031507,2]
[391768975,1760791841863,-2185.70054475,0.00031507,2]
[391768976,1760791841873,-487.37196619,0.00031507,2]
[391768977,1760791841882,-877.26953915,0.00031507,2]
[391768978,1760791841892,-1559.59029182,0.00031507,2]
[391768979,1760791841902,-2436.85983097,0.00031507,2]
[391768980,1760791841911,-3509.0781566,0.00031507,2]
[391768981,1760791841921,-779.4,0.00031528,15]
[391768982,1760791841930,-3500.0,0.0003156,5]
[391768983,1760791841939,-3500.0,0.0003156,5]
[391768984,1760791841948,-157.7,0.00031579,2]
[391768985,1760791841958,-692.61027559,0.0003159,2]
[391768986,1760791841968,-154.0,0.000316,120]